[Event "Titled Tuesday Blitz March 28 Early 2023"]
[White "Dino_Ballecer"]
[Black "Olsson, William"]
[BlackFideId "1741721"]
[WhiteElo "2586"]
[BlackElo "2197"]
[Result "1-0"]
[Round "07"]
[TimeControl "180+2"]
[Date "2023.03.28"]
[WhiteClock "0:00:28"]
[BlackClock "0:00:01"]

1. e4 {[%clk 0:03:00]}  c5 {[%clk 0:02:58]} 2. Nf3 {[%clk 0:03:00]}  d6 {[%clk 0:02:59]} 3. Bb5+ {[%clk 0:03:00]}  Nd7 {[%clk 0:02:57]} 4. Bxd7+ {[%clk 0:03:00]}  Bxd7 {[%clk 0:02:57]} 5. O-O {[%clk 0:03:01]}  Nf6 {[%clk 0:02:57]} 6. e5 {[%clk 0:03:00]}  dxe5 {[%clk 0:02:55]} 7. Nxe5 {[%clk 0:03:01]}  e6 {[%clk 0:02:56]} 8. Qf3 {[%clk 0:03:00]}  Bd6 {[%clk 0:02:34]} 9. Nxd7 {[%clk 0:02:51]}  Qxd7 {[%clk 0:02:35]} 10. Nc3 {[%clk 0:02:47]}  O-O {[%clk 0:02:31]} 11. d3 {[%clk 0:02:47]}  b5 {[%clk 0:02:16]} 12. Bg5 {[%clk 0:02:45]}  Nd5 {[%clk 0:02:16]} 13. Nxd5 {[%clk 0:02:42]}  exd5 {[%clk 0:02:17]} 14. Rfe1 {[%clk 0:02:42]}  Rfe8 {[%clk 0:02:09]} 15. Bf4 {[%clk 0:02:41]}  Rxe1+ {[%clk 0:01:41]} 16. Rxe1 {[%clk 0:02:38]}  Re8 {[%clk 0:01:42]} 17. Rxe8+ {[%clk 0:02:24]}  Qxe8 {[%clk 0:01:43]} 18. h3 {[%clk 0:02:24]}  Bxf4 {[%clk 0:01:16]} 19. Qxf4 {[%clk 0:02:22]}  h6 {[%clk 0:01:16]} 20. Kf1 {[%clk 0:02:20]}  Qd8 {[%clk 0:01:01]} 21. a3 {[%clk 0:02:14]}  c4 {[%clk 0:00:57]} 22. Qd4 {[%clk 0:02:08]}  cxd3 {[%clk 0:00:45]} 23. Qxd3 {[%clk 0:02:07]}  a6 {[%clk 0:00:45]} 24. g3 {[%clk 0:02:00]}  Qd6 {[%clk 0:00:44]} 25. Kg2 {[%clk 0:01:59]}  Qc6 {[%clk 0:00:44]} 26. h4 {[%clk 0:01:52]}  Kf8 {[%clk 0:00:41]} 27. Kh2 {[%clk 0:01:48]}  Qc4 {[%clk 0:00:26]} 28. Qd2 {[%clk 0:01:42]}  Qc6 {[%clk 0:00:18]} 29. c3 {[%clk 0:01:38]}  Qc5 {[%clk 0:00:16]} 30. Kg2 {[%clk 0:01:38]}  Qc6 {[%clk 0:00:15]} 31. Qd4 {[%clk 0:01:38]}  Ke7 {[%clk 0:00:15]} 32. Qxg7 {[%clk 0:01:30]}  d4+ {[%clk 0:00:15]} 33. Kg1 {[%clk 0:01:30]}  d3 {[%clk 0:00:15]} 34. Qd4 {[%clk 0:01:28]}  Qf3 {[%clk 0:00:14]} 35. Qe5+ {[%clk 0:01:07]}  Kd7 {[%clk 0:00:14]} 36. Qd4+ {[%clk 0:01:07]}  Ke6 {[%clk 0:00:14]} 37. Qb6+ {[%clk 0:01:05]}  Kd7 {[%clk 0:00:12]} 38. Qa7+ {[%clk 0:01:00]}  Ke8 {[%clk 0:00:05]} 39. Qb8+ {[%clk 0:00:58]}  Ke7 {[%clk 0:00:05]} 40. Qe5+ {[%clk 0:00:58]}  Kd7 {[%clk 0:00:04]} 41. Qd4+ {[%clk 0:00:57]}  Kc6 {[%clk 0:00:04]} 42. c4 {[%clk 0:00:54]}  Qe2 {[%clk 0:00:02]} 43. Qd5+ {[%clk 0:00:51]}  Kc7 {[%clk 0:00:02]} 44. Qxf7+ {[%clk 0:00:49]}  Kb6 {[%clk 0:00:03]} 45. Qf6+ {[%clk 0:00:45]}  Kc5 {[%clk 0:00:02]} 46. cxb5 {[%clk 0:00:40]}  d2 {[%clk 0:00:02]} 47. Qc6+ {[%clk 0:00:38]}  Kd4 {[%clk 0:00:02]} 48. Qc3+ {[%clk 0:00:37]}  Ke4 {[%clk 0:00:02]} 49. Qc6+ {[%clk 0:00:36]}  Kd3 {[%clk 0:00:02]} 50. Qc3+ {[%clk 0:00:36]}  Ke4 {[%clk 0:00:02]} 51. Qc6+ {[%clk 0:00:35]}  Kf5 {[%clk 0:00:02]} 52. Qd5+ {[%clk 0:00:33]}  Kf6 {[%clk 0:00:02]} 53. Qd6+ {[%clk 0:00:33]}  Kg7 {[%clk 0:00:02]} 54. Qd7+ {[%clk 0:00:32]}  Kg6 {[%clk 0:00:02]} 55. h5+ {[%clk 0:00:30]}  Kg5 {[%clk 0:00:01]} 56. Qd5+ {[%clk 0:00:28]} 1-0


[Site "https://www.chess.com"]

[Event "Titled Tuesday Blitz March 28 Early 2023"]
[White "Lenaerts, Lennert"]
[Black "Gatterer, Florian"]
[WhiteFideId "211435"]
[BlackFideId "811688"]
[WhiteElo "2334"]
[BlackElo "2221"]
[Result "1-0"]
[Round "07"]
[TimeControl "180+2"]
[Date "2023.03.28"]
[WhiteClock "0:02:46"]
[BlackClock "0:01:50"]

1. d4 {[%clk 0:03:00]}  d5 {[%clk 0:02:59]} 2. c4 {[%clk 0:03:01]}  c6 {[%clk 0:03:00]} 3. cxd5 {[%clk 0:03:01]}  cxd5 {[%clk 0:02:59]} 4. Bf4 {[%clk 0:03:02]}  Nf6 {[%clk 0:02:58]} 5. Nc3 {[%clk 0:03:02]}  Nc6 {[%clk 0:02:58]} 6. e3 {[%clk 0:03:03]}  Bf5 {[%clk 0:02:58]} 7. Nf3 {[%clk 0:03:03]}  e6 {[%clk 0:02:56]} 8. Qb3 {[%clk 0:03:04]}  Bb4 {[%clk 0:02:55]} 9. Ne5 {[%clk 0:03:03]}  O-O {[%clk 0:02:42]} 10. Nxc6 {[%clk 0:03:03]}  Bxc3+ {[%clk 0:02:42]} 11. Qxc3 {[%clk 0:03:03]}  bxc6 {[%clk 0:02:41]} 12. Qa3 {[%clk 0:03:04]}  Ne4 {[%clk 0:02:26]} 13. f3 {[%clk 0:03:04]}  Nf6 {[%clk 0:02:13]} 14. Rc1 {[%clk 0:03:04]}  Nh5 {[%clk 0:02:03]} 15. Bd6 {[%clk 0:03:01]}  Re8 {[%clk 0:02:00]} 16. Ba6 {[%clk 0:02:55]}  Qh4+ {[%clk 0:01:50]} 17. g3 {[%clk 0:02:55]}  Qh3 {[%clk 0:01:50]} 18. Bf1 {[%clk 0:02:46]} 1-0


[Site "https://www.chess.com"]

[Event "Titled Tuesday Blitz March 28 Early 2023"]
[White "Martic, Ivan"]
[Black "Vaglio Munoz, Jaime"]
[WhiteFideId "929301"]
[BlackFideId "6500145"]
[WhiteElo "2360"]
[BlackElo "2199"]
[Result "1-0"]
[Round "07"]
[TimeControl "180+2"]
[Date "2023.03.28"]
[WhiteClock "0:00:17"]
[BlackClock "0:00:04"]

1. d4 {[%clk 0:03:00]}  e6 {[%clk 0:02:59]} 2. e4 {[%clk 0:03:00]}  d5 {[%clk 0:02:59]} 3. e5 {[%clk 0:03:00]}  c5 {[%clk 0:02:58]} 4. c3 {[%clk 0:03:01]}  Qb6 {[%clk 0:02:58]} 5. Nf3 {[%clk 0:03:01]}  Bd7 {[%clk 0:02:58]} 6. Be2 {[%clk 0:03:01]}  cxd4 {[%clk 0:02:58]} 7. cxd4 {[%clk 0:03:01]}  Bb5 {[%clk 0:02:58]} 8. Nc3 {[%clk 0:03:01]}  Bxe2 {[%clk 0:02:58]} 9. Nxe2 {[%clk 0:03:02]}  Nc6 {[%clk 0:02:58]} 10. O-O {[%clk 0:02:56]}  Nge7 {[%clk 0:02:56]} 11. Ng3 {[%clk 0:02:55]}  h5 {[%clk 0:02:53]} 12. h4 {[%clk 0:02:53]}  g6 {[%clk 0:02:53]} 13. Bg5 {[%clk 0:02:53]}  Nf5 {[%clk 0:02:53]} 14. Nxf5 {[%clk 0:02:47]}  gxf5 {[%clk 0:02:53]} 15. Bf6 {[%clk 0:02:47]}  Rg8 {[%clk 0:02:52]} 16. Ng5 {[%clk 0:02:39]}  Nxd4 {[%clk 0:02:42]} 17. Qxh5 {[%clk 0:02:37]}  Rg6 {[%clk 0:02:30]} 18. Rad1 {[%clk 0:02:29]}  Qxb2 {[%clk 0:02:25]} 19. Rxd4 {[%clk 0:02:14]}  Qxd4 {[%clk 0:02:23]} 20. Nxe6 {[%clk 0:02:02]}  Qe4 {[%clk 0:01:24]} 21. g3 {[%clk 0:01:52]}  Kd7 {[%clk 0:01:13]} 22. Ng5 {[%clk 0:01:40]}  Qg4 {[%clk 0:01:09]} 23. Qh7 {[%clk 0:01:34]}  Bc5 {[%clk 0:00:19]} 24. Qxf7+ {[%clk 0:01:31]}  Kc6 {[%clk 0:00:19]} 25. Kh2 {[%clk 0:01:06]}  Rxg5 {[%clk 0:00:11]} 26. Qe6+ {[%clk 0:01:02]}  Kb5 {[%clk 0:00:10]} 27. Bxg5 {[%clk 0:00:55]}  Qe4 {[%clk 0:00:07]} 28. Qd7+ {[%clk 0:00:50]}  Ka6 {[%clk 0:00:06]} 29. e6 {[%clk 0:00:43]}  Qc4 {[%clk 0:00:05]} 30. Rb1 {[%clk 0:00:36]}  b6 {[%clk 0:00:05]} 31. e7 {[%clk 0:00:32]}  Qc2 {[%clk 0:00:05]} 32. Qb5+ {[%clk 0:00:29]}  Kb7 {[%clk 0:00:04]} 33. Rf1 {[%clk 0:00:17]} 1-0


[Site "https://www.chess.com"]

[Event "Titled Tuesday Blitz March 28 Early 2023"]
[White "Ezat, Mohamed"]
[Black "Fernandez Garcia, Gumersindo"]
[WhiteFideId "10600906"]
[BlackFideId "24516740"]
[WhiteElo "2386"]
[BlackElo "2093"]
[Result "0-1"]
[Round "07"]
[TimeControl "180+2"]
[Date "2023.03.28"]
[WhiteClock "0:01:41"]
[BlackClock "0:01:59"]

1. e4 {[%clk 0:02:41]}  c5 {[%clk 0:03:00]} 2. d4 {[%clk 0:02:37]}  cxd4 {[%clk 0:03:00]} 3. c3 {[%clk 0:02:37]}  dxc3 {[%clk 0:03:00]} 4. Nxc3 {[%clk 0:02:38]}  Nc6 {[%clk 0:03:01]} 5. Nf3 {[%clk 0:02:37]}  e6 {[%clk 0:03:01]} 6. Bc4 {[%clk 0:02:38]}  Nf6 {[%clk 0:02:57]} 7. O-O {[%clk 0:02:38]}  Qc7 {[%clk 0:02:58]} 8. Qe2 {[%clk 0:02:38]}  Ng4 {[%clk 0:02:58]} 9. g3 {[%clk 0:02:37]}  a6 {[%clk 0:02:54]} 10. Bf4 {[%clk 0:02:36]}  Nge5 {[%clk 0:02:54]} 11. Bb3 {[%clk 0:02:35]}  d6 {[%clk 0:02:51]} 12. Nd5 {[%clk 0:02:35]}  Nxf3+ {[%clk 0:02:38]} 13. Qxf3 {[%clk 0:01:59]}  exd5 {[%clk 0:02:37]} 14. exd5 {[%clk 0:01:59]}  Ne5 {[%clk 0:02:37]} 15. Rfe1 {[%clk 0:01:57]}  Be7 {[%clk 0:02:29]} 16. Bxe5 {[%clk 0:01:56]}  dxe5 {[%clk 0:02:23]} 17. d6 {[%clk 0:01:57]}  Bxd6 {[%clk 0:02:15]} 18. Rac1 {[%clk 0:01:55]}  Qe7 {[%clk 0:02:14]} 19. Red1 {[%clk 0:01:47]}  O-O {[%clk 0:02:11]} 20. Qd5 {[%clk 0:01:45]}  Bb4 {[%clk 0:02:03]} 21. a3 {[%clk 0:01:43]}  Be6 {[%clk 0:02:01]} 22. Qxe5 {[%clk 0:01:42]}  Bxb3 {[%clk 0:02:01]} 23. Qxe7 {[%clk 0:01:41]}  Bxe7 {[%clk 0:01:59]} 0-1


[Site "https://www.chess.com"]

[Event "Titled Tuesday Blitz March 28 Early 2023"]
[White "Kopczynski, Michal"]
[Black "Drori, Saar"]
[WhiteFideId "1124200"]
[BlackFideId "2812444"]
[WhiteElo "2212"]
[BlackElo "2322"]
[Result "0-1"]
[Round "07"]
[TimeControl "180+2"]
[Date "2023.03.28"]
[WhiteClock "0:00:21"]
[BlackClock "0:00:39"]

1. e4 {[%clk 0:03:00]}  c5 {[%clk 0:03:00]} 2. d4 {[%clk 0:03:01]}  cxd4 {[%clk 0:03:00]} 3. c3 {[%clk 0:03:01]}  dxc3 {[%clk 0:03:01]} 4. Nxc3 {[%clk 0:03:02]}  Nc6 {[%clk 0:03:02]} 5. f4 {[%clk 0:03:02]}  g6 {[%clk 0:03:00]} 6. Nf3 {[%clk 0:03:03]}  Bg7 {[%clk 0:03:01]} 7. Bc4 {[%clk 0:03:03]}  e6 {[%clk 0:03:00]} 8. f5 {[%clk 0:03:03]}  Nge7 {[%clk 0:02:59]} 9. fxg6 {[%clk 0:03:02]}  fxg6 {[%clk 0:02:41]} 10. O-O {[%clk 0:03:03]}  O-O {[%clk 0:02:41]} 11. Bg5 {[%clk 0:03:00]}  Qb6+ {[%clk 0:02:37]} 12. Kh1 {[%clk 0:03:00]}  Qxb2 {[%clk 0:02:35]} 13. Nd5 {[%clk 0:02:02]}  Nxd5 {[%clk 0:02:19]} 14. exd5 {[%clk 0:01:41]}  Qxa1 {[%clk 0:02:16]} 15. Qa4 {[%clk 0:01:40]}  Qb2 {[%clk 0:01:54]} 16. dxc6 {[%clk 0:01:39]}  bxc6 {[%clk 0:01:53]} 17. Bb3 {[%clk 0:01:28]}  Rb8 {[%clk 0:01:30]} 18. Be7 {[%clk 0:01:24]}  Rf7 {[%clk 0:01:26]} 19. Bd6 {[%clk 0:01:22]}  Rb5 {[%clk 0:01:06]} 20. Qxa7 {[%clk 0:01:16]}  Rg5 {[%clk 0:00:48]} 21. Rg1 {[%clk 0:00:44]}  Rxf3 {[%clk 0:00:40]} 22. Qb8 {[%clk 0:00:21]}  Qxg2+ {[%clk 0:00:39]} 0-1


[Site "https://www.chess.com"]

[Event "Titled Tuesday Blitz March 28 Early 2023"]
[White "Castellanos Villela, Alejandro"]
[Black "Devaev, Alexander"]
[WhiteFideId "3446379"]
[BlackFideId "4169395"]
[WhiteElo "2102"]
[BlackElo "2225"]
[Result "1-0"]
[Round "07"]
[TimeControl "180+2"]
[Date "2023.03.28"]
[WhiteClock "0:01:52"]
[BlackClock "0:00:07"]

1. d4 {[%clk 0:03:00]}  Nf6 {[%clk 0:02:59]} 2. c4 {[%clk 0:03:01]}  e6 {[%clk 0:03:00]} 3. Nc3 {[%clk 0:03:02]}  Bb4 {[%clk 0:03:00]} 4. f3 {[%clk 0:03:02]}  c5 {[%clk 0:02:58]} 5. d5 {[%clk 0:03:02]}  d6 {[%clk 0:02:58]} 6. e4 {[%clk 0:03:01]}  e5 {[%clk 0:02:57]} 7. Bd3 {[%clk 0:03:01]}  Bxc3+ {[%clk 0:02:56]} 8. bxc3 {[%clk 0:03:00]}  Nbd7 {[%clk 0:02:55]} 9. Ne2 {[%clk 0:03:00]}  Nf8 {[%clk 0:02:56]} 10. a4 {[%clk 0:02:58]}  h6 {[%clk 0:02:55]} 11. a5 {[%clk 0:02:58]}  g5 {[%clk 0:02:03]} 12. h4 {[%clk 0:02:34]}  g4 {[%clk 0:01:36]} 13. f4 {[%clk 0:02:34]}  Ng6 {[%clk 0:01:32]} 14. h5 {[%clk 0:02:31]}  Nxf4 {[%clk 0:01:18]} 15. Nxf4 {[%clk 0:02:30]}  exf4 {[%clk 0:01:19]} 16. Bxf4 {[%clk 0:02:31]}  Qe7 {[%clk 0:01:19]} 17. Qd2 {[%clk 0:02:23]}  Nd7 {[%clk 0:00:27]} 18. Bxh6 {[%clk 0:02:15]}  Ne5 {[%clk 0:00:27]} 19. Bf4 {[%clk 0:02:12]}  Bd7 {[%clk 0:00:19]} 20. Be2 {[%clk 0:02:07]}  O-O-O {[%clk 0:00:19]} 21. h6 {[%clk 0:02:06]}  f5 {[%clk 0:00:19]} 22. Bg5 {[%clk 0:02:04]}  Qf7 {[%clk 0:00:18]} 23. Bxd8 {[%clk 0:02:05]}  Kxd8 {[%clk 0:00:17]} 24. exf5 {[%clk 0:02:03]}  Bxf5 {[%clk 0:00:17]} 25. O-O-O {[%clk 0:01:59]}  Qc7 {[%clk 0:00:15]} 26. Qg5+ {[%clk 0:01:57]}  Ke8 {[%clk 0:00:12]} 27. Qxf5 {[%clk 0:01:57]}  Qxa5 {[%clk 0:00:12]} 28. Qe6+ {[%clk 0:01:56]}  Kd8 {[%clk 0:00:12]} 29. Qxd6+ {[%clk 0:01:56]}  Nd7 {[%clk 0:00:11]} 30. Kb2 {[%clk 0:01:54]}  Rf8 {[%clk 0:00:07]} 31. Ra1 {[%clk 0:01:52]} 1-0


[Site "https://www.chess.com"]

[Event "Titled Tuesday Blitz March 28 Early 2023"]
[White "Iljin, Timofey"]
[Black "Degenbaev, Aziz"]
[WhiteFideId "14110180"]
[BlackFideId "13802640"]
[WhiteElo "2397"]
[BlackElo "2152"]
[Result "1-0"]
[Round "07"]
[TimeControl "180+2"]
[Date "2023.03.28"]
[WhiteClock "0:00:10"]
[BlackClock "0:00:13"]

1. e4 {[%clk 0:03:00]}  c5 {[%clk 0:02:59]} 2. c3 {[%clk 0:03:01]}  Nf6 {[%clk 0:02:59]} 3. e5 {[%clk 0:03:01]}  Nd5 {[%clk 0:03:00]} 4. d4 {[%clk 0:03:02]}  cxd4 {[%clk 0:03:00]} 5. cxd4 {[%clk 0:03:03]}  Nc6 {[%clk 0:03:00]} 6. Nf3 {[%clk 0:03:04]}  d6 {[%clk 0:03:00]} 7. Bc4 {[%clk 0:03:04]}  dxe5 {[%clk 0:03:00]} 8. dxe5 {[%clk 0:03:03]}  Ndb4 {[%clk 0:02:52]} 9. O-O {[%clk 0:02:58]}  Qxd1 {[%clk 0:02:40]} 10. Rxd1 {[%clk 0:02:58]}  Nc2 {[%clk 0:02:41]} 11. Na3 {[%clk 0:02:53]}  Nxa3 {[%clk 0:02:18]} 12. bxa3 {[%clk 0:02:54]}  e6 {[%clk 0:02:19]} 13. Rb1 {[%clk 0:02:51]}  Be7 {[%clk 0:02:16]} 14. a4 {[%clk 0:02:26]}  a6 {[%clk 0:01:46]} 15. Bf4 {[%clk 0:02:21]}  O-O {[%clk 0:01:16]} 16. Be3 {[%clk 0:02:21]}  Rd8 {[%clk 0:01:02]} 17. Bb6 {[%clk 0:02:21]}  Re8 {[%clk 0:00:45]} 18. Kf1 {[%clk 0:02:16]}  g5 {[%clk 0:00:34]} 19. h3 {[%clk 0:02:15]}  h6 {[%clk 0:00:34]} 20. Ke2 {[%clk 0:02:13]}  Bf8 {[%clk 0:00:34]} 21. Ke3 {[%clk 0:02:09]}  Ne7 {[%clk 0:00:35]} 22. Ke4 {[%clk 0:02:07]}  Ng6 {[%clk 0:00:32]} 23. g3 {[%clk 0:02:06]}  Bg7 {[%clk 0:00:29]} 24. a5 {[%clk 0:01:54]}  Nf8 {[%clk 0:00:25]} 25. Rd2 {[%clk 0:01:39]}  Bd7 {[%clk 0:00:25]} 26. Ke3 {[%clk 0:01:27]}  Rac8 {[%clk 0:00:25]} 27. Bd3 {[%clk 0:01:14]}  Bc6 {[%clk 0:00:24]} 28. Be4 {[%clk 0:01:10]}  Bxe4 {[%clk 0:00:21]} 29. Kxe4 {[%clk 0:01:11]}  Ng6 {[%clk 0:00:21]} 30. h4 {[%clk 0:00:55]}  Rc4+ {[%clk 0:00:18]} 31. Bd4 {[%clk 0:00:54]}  g4 {[%clk 0:00:18]} 32. h5 {[%clk 0:00:49]}  Ne7 {[%clk 0:00:10]} 33. Kd3 {[%clk 0:00:18]}  Ra4 {[%clk 0:00:06]} 34. Ne1 {[%clk 0:00:18]}  Nc6 {[%clk 0:00:06]} 35. Bc3 {[%clk 0:00:15]}  Nxe5+ {[%clk 0:00:06]} 36. Bxe5 {[%clk 0:00:13]}  Bxe5 {[%clk 0:00:06]} 37. Rxb7 {[%clk 0:00:14]}  Rd8+ {[%clk 0:00:07]} 38. Ke2 {[%clk 0:00:14]}  Re4+ {[%clk 0:00:07]} 39. Kd1 {[%clk 0:00:14]}  Rc8 {[%clk 0:00:05]} 40. Rdd7 {[%clk 0:00:11]}  Bc3 {[%clk 0:00:05]} 41. Nd3 {[%clk 0:00:08]}  Rd4 {[%clk 0:00:06]} 42. Rxd4 {[%clk 0:00:08]}  Bxd4 {[%clk 0:00:06]} 43. Kd2 {[%clk 0:00:07]}  e5 {[%clk 0:00:06]} 44. Rd7 {[%clk 0:00:05]}  Rc4 {[%clk 0:00:05]} 45. Rd6 {[%clk 0:00:05]}  Ra4 {[%clk 0:00:05]} 46. Rxa6 {[%clk 0:00:06]}  Rxa2+ {[%clk 0:00:05]} 47. Ke1 {[%clk 0:00:06]}  e4 {[%clk 0:00:06]} 48. Nf4 {[%clk 0:00:01]}  Bxf2+ {[%clk 0:00:07]} 49. Kf1 {[%clk 0:00:02]}  Bxg3 {[%clk 0:00:07]} 50. Ne2 {[%clk 0:00:02]}  Be5 {[%clk 0:00:07]} 51. Ra8+ {[%clk 0:00:03]}  Kg7 {[%clk 0:00:08]} 52. a6 {[%clk 0:00:04]}  e3 {[%clk 0:00:08]} 53. a7 {[%clk 0:00:04]}  Ra1+ {[%clk 0:00:08]} 54. Kg2 {[%clk 0:00:04]}  Ra2 {[%clk 0:00:09]} 55. Kf1 {[%clk 0:00:04]}  g3 {[%clk 0:00:09]} 56. Re8 {[%clk 0:00:04]}  Rxa7 {[%clk 0:00:06]} 57. Rxe5 {[%clk 0:00:05]}  Ra1+ {[%clk 0:00:05]} 58. Kg2 {[%clk 0:00:05]}  f5 {[%clk 0:00:04]} 59. Rxe3 {[%clk 0:00:04]}  Ra2 {[%clk 0:00:04]} 60. Kxg3 {[%clk 0:00:04]}  Kf6 {[%clk 0:00:05]} 61. Kf2 {[%clk 0:00:04]}  Kg5 {[%clk 0:00:05]} 62. Rh3 {[%clk 0:00:04]}  Kg4 {[%clk 0:00:05]} 63. Rh1 {[%clk 0:00:04]}  f4 {[%clk 0:00:06]} 64. Rg1+ {[%clk 0:00:03]}  Kxh5 {[%clk 0:00:06]} 65. Kf3 {[%clk 0:00:03]}  Kh4 {[%clk 0:00:06]} 66. Nxf4 {[%clk 0:00:03]}  h5 {[%clk 0:00:06]} 67. Ng6+ {[%clk 0:00:02]}  Kh3 {[%clk 0:00:06]} 68. Rh1+ {[%clk 0:00:03]}  Rh2 {[%clk 0:00:05]} 69. Nf4+ {[%clk 0:00:03]}  Kh4 {[%clk 0:00:06]} 70. Rxh2+ {[%clk 0:00:04]}  Kg5 {[%clk 0:00:07]} 71. Rxh5+ {[%clk 0:00:05]}  Kf6 {[%clk 0:00:08]} 72. Ke4 {[%clk 0:00:06]}  Ke7 {[%clk 0:00:08]} 73. Ra5 {[%clk 0:00:07]}  Kd8 {[%clk 0:00:09]} 74. Kd5 {[%clk 0:00:07]}  Kc8 {[%clk 0:00:10]} 75. Ne6 {[%clk 0:00:08]}  Kb8 {[%clk 0:00:11]} 76. Rc5 {[%clk 0:00:08]}  Ka8 {[%clk 0:00:11]} 77. Rc7 {[%clk 0:00:09]}  Kb8 {[%clk 0:00:12]} 78. Kc6 {[%clk 0:00:09]}  Ka8 {[%clk 0:00:12]} 79. Nd4 {[%clk 0:00:09]}  Kb8 {[%clk 0:00:13]} 80. Nb5 {[%clk 0:00:09]}  Ka8 {[%clk 0:00:13]} 81. Ra7+ {[%clk 0:00:09]}  Kb8 {[%clk 0:00:13]} 82. Ra1 {[%clk 0:00:09]}  Kc8 {[%clk 0:00:13]} 83. Ra8# {[%clk 0:00:10]} 1-0


[Site "https://www.chess.com"]

[Event "Titled Tuesday Blitz March 28 Early 2023"]
[White "Silva Lucena, Cristian"]
[Black "Ibadov, Dashgyn"]
[WhiteFideId "2232588"]
[BlackFideId "24107514"]
[WhiteElo "2223"]
[BlackElo "2208"]
[Result "1-0"]
[Round "07"]
[TimeControl "180+2"]
[Date "2023.03.28"]
[WhiteClock "0:01:47"]
[BlackClock "0:00:35"]

1. d4 {[%clk 0:02:59]}  Nf6 {[%clk 0:02:58]} 2. c4 {[%clk 0:02:59]}  c5 {[%clk 0:02:59]} 3. Nf3 {[%clk 0:02:58]}  e6 {[%clk 0:02:58]} 4. g3 {[%clk 0:02:57]}  cxd4 {[%clk 0:02:57]} 5. Nxd4 {[%clk 0:02:57]}  d5 {[%clk 0:02:58]} 6. Bg2 {[%clk 0:02:56]}  e5 {[%clk 0:02:58]} 7. Nb5 {[%clk 0:02:54]}  d4 {[%clk 0:02:59]} 8. O-O {[%clk 0:02:49]}  a6 {[%clk 0:02:56]} 9. N5a3 {[%clk 0:02:48]}  Nc6 {[%clk 0:02:55]} 10. e3 {[%clk 0:02:46]}  Be7 {[%clk 0:02:47]} 11. exd4 {[%clk 0:02:45]}  Nxd4 {[%clk 0:02:42]} 12. Nc3 {[%clk 0:02:44]}  Bg4 {[%clk 0:02:41]} 13. Qa4+ {[%clk 0:02:40]}  Bd7 {[%clk 0:02:32]} 14. Qd1 {[%clk 0:02:39]}  Bc6 {[%clk 0:02:13]} 15. Nc2 {[%clk 0:02:39]}  Bxg2 {[%clk 0:02:11]} 16. Kxg2 {[%clk 0:02:39]}  O-O {[%clk 0:02:01]} 17. Nxd4 {[%clk 0:02:36]}  exd4 {[%clk 0:02:02]} 18. Ne2 {[%clk 0:02:36]}  Bc5 {[%clk 0:01:55]} 19. Bg5 {[%clk 0:02:30]}  h6 {[%clk 0:01:46]} 20. Bxf6 {[%clk 0:02:30]}  Qxf6 {[%clk 0:01:46]} 21. Nf4 {[%clk 0:02:31]}  Rad8 {[%clk 0:01:30]} 22. Qf3 {[%clk 0:02:30]}  d3 {[%clk 0:01:19]} 23. b3 {[%clk 0:02:22]}  b5 {[%clk 0:01:06]} 24. cxb5 {[%clk 0:02:16]}  axb5 {[%clk 0:01:07]} 25. Rad1 {[%clk 0:02:16]}  d2 {[%clk 0:01:01]} 26. Qe2 {[%clk 0:02:06]}  Rfe8 {[%clk 0:00:57]} 27. Qxb5 {[%clk 0:02:05]}  Qc3 {[%clk 0:00:52]} 28. Qc4 {[%clk 0:02:00]}  Qxc4 {[%clk 0:00:39]} 29. bxc4 {[%clk 0:01:59]}  Bb4 {[%clk 0:00:39]} 30. Nd5 {[%clk 0:01:56]}  Re1 {[%clk 0:00:35]} 31. Nxb4 {[%clk 0:01:47]} 1-0


[Site "https://www.chess.com"]